[Event "DVM U16w 2024"]
[Site "Neumuenster"]
[Date "2024.12.29"]
[Round "5"]
[White "Bako, Isabella"]
[Black "Averkova, Mariia"]
[Result "1/2-1/2"]
[ECO "D04"]
[WhiteElo "1600"]
[BlackElo "1765"]
[Annotator "NA RC"]
[PlyCount "84"]
[EventDate "2024.12.23"]
[EventType "team-tourn"]
[EventRounds "7"]
[EventCountry "GER"]
[SourceTitle "playchess.com"]
[Source "ChessBase"]
[SourceQuality "1"]
[TimeControl "40/5400+30:1800+30"]

1. d4 {[%emt 0:00:02]} d5 {[%emt 0:00:06]} 2. Nf3 {[%emt 0:00:06]} c5 {[%emt 0:00:17]} 3. e3 {[%emt 0:01:18]} Nc6 {[%emt 0:02:00]} 4. b3 {[%emt 0:00:27]} Nf6 {[%emt 0:01:40]} 5. Bd3 {[%emt 0:01:26]} Bg4 {[%emt 0:01:30]} 6. Bb2 {[%emt 0:00:27]} e6 {[%emt 0:02:17]} 7. Nbd2 {[%emt 0:01:25]} Be7 {[%emt 0:02:01]} 8. O-O {[%emt 0:00:25]} O-O {[%emt 0:01:59]} 9. a3 {[%emt 0:01:46]} a6 {[%emt 0:02:02]} 10. Qe1 {[%emt 0:03:34]} Rb8 {[%emt 0:07:27]} 11. dxc5 {[%emt 0:12:00]} Bxc5 {[%emt 0:02:06]} 12. b4 {[%emt 0:04:02]} Be7 {[%emt 0:09:56]} 13. Ne5 {[%emt 0:05:17]} Nxe5 {[%emt 0:03:34]} 14. Bxe5 {[%emt 0:00:10]} Bd6 {[%emt 0:05:24]} 15. f4 {[%emt 0:09:11]} Bxe5 {[%emt 0:18:29]} 16. fxe5 {[%emt 0:00:10]} Nd7 {[%emt 0:00:55]} 17. Qg3 {[%emt 0:01:46]} Bh5 {[%emt 0:01:01]} 18. Nf3 {[%emt 0:05:53]} Bxf3 {[%emt 0:07:34]} 19. gxf3 {[%emt 0:01:35]} g6 {[%emt 0:02:30]} 20. h4 {[%emt 0:02:06]} Kg7 {[%emt 0:07:34]} 21. Kf2 {[%emt 0:07:12]} h5 {[%emt 0:04:38]} 22. Rg1 {[%emt 0:07:30]} Qe8 {[%emt 0:00:20]} 23. Rg2 {[%emt 0:05:29]} Rh8 {[%emt 0:02:44]} 24. Rag1 {[%emt 0:01:50]} Rh6 {[%emt 0:00:45]} 25. f4 {[%emt 0:04:49]} Rc8 {[%emt 0:02:04]} 26. Ke1 {[%emt 0:05:47]} Rc3 {[%emt 0:01:33]} 27. a4 {[%emt 0:02:00]} Ra3 {[%emt 0:00:45]} 28. a5 {[%emt 0:00:14]} Ra1+ {[%emt 0:00:41]} 29. Kf2 {[%emt 0:00:11]} Rxg1 {[%emt 0:00:18]} 30. Rxg1 {[%emt 0:00:07]} Nb8 {[%emt 0:00:22]} 31. Qg5 {[%emt 0:02:11]} Kh7 {[%emt 0:02:27]} 32. f5 {[%emt 0:01:56]} Nc6 {[%emt 0:02:08]} 33. fxg6+ {[%emt 0:02:39]} fxg6 {[%emt 0:00:37]} 34. Qf4 {[%emt 0:02:31]} Ne7 {[%emt 0:01:42]} 35. e4 {[%emt 0:02:36]} d4 {[%emt 0:01:03]} 36. Bc4 {[%emt 0:02:01]} Nc6 {[%emt 0:01:12]} 37. Rb1 {[%emt 0:00:51]} Qe7 {[%emt 0:00:53]} 38. Qf6 {[%emt 0:01:25]} g5 {[%emt 0:02:32]} 39. Qxe7+ {[%emt 0:00:45]} Nxe7 {[%emt 0:00:05]} 40. hxg5 {[%emt 0:00:41]} Rg6 {[%emt 0:00:43]} 41. Rg1 {[%emt 0:31:20]} Nc6 {[%emt 0:32:17]} 42. Be2 {[%emt 0:02:26]} h4 {[%emt 0:00:00]} 1/2-1/2

[Event "DVM U16w 2024"]
[Site "Neumuenster"]
[Date "2024.12.29"]
[Round "5"]
[White "Goeb, Franziska"]
[Black "Mueller, Cosima"]
[Result "1/2-1/2"]
[ECO "B38"]
[WhiteElo "1572"]
[BlackElo "1757"]
[Annotator "NA RC"]
[PlyCount "74"]
[EventDate "2024.12.23"]
[EventType "team-tourn"]
[EventRounds "7"]
[EventCountry "GER"]
[SourceTitle "playchess.com"]
[Source "ChessBase"]
[SourceQuality "1"]
[TimeControl "40/5400+30:1800+30"]

1. e4 {[%emt 0:00:02]} c5 {[%emt 0:00:03]} 2. Nf3 {[%emt 0:00:05]} Nc6 {[%emt 0:00:06]} 3. d4 {[%emt 0:00:04]} cxd4 {[%emt 0:00:06]} 4. Nxd4 {[%emt 0:00:05]} g6 {[%emt 0:00:05]} 5. c4 {[%emt 0:00:06]} Bg7 {[%emt 0:00:04]} 6. Be3 {[%emt 0:00:05]} Nf6 {[%emt 0:00:06]} 7. Nc3 {[%emt 0:00:05]} O-O {[%emt 0:00:15]} 8. Be2 {[%emt 0:00:11]} d6 {[%emt 0:00:08]} 9. O-O {[%emt 0:00:08]} Bd7 {[%emt 0:00:09]} 10. Qd2 {[%emt 0:00:47]} Nxd4 {[%emt 0:00:17]} 11. Bxd4 {[%emt 0:00:07]} Bc6 {[%emt 0:00:08]} 12. f3 {[%emt 0:00:16]} Nd7 {[%emt 0:00:06]} 13. Be3 {[%emt 0:00:12]} Rc8 {[%emt 0:04:32]} 14. Rfc1 {[%emt 0:03:51]} Nb6 {[%emt 0:21:29]} 15. b3 {[%emt 0:10:46]} e6 {[%emt 0:03:51]} 16. Rab1 {[%emt 0:08:20]} d5 {[%emt 0:06:49]} 17. exd5 {[%emt 0:21:31]} exd5 {[%emt 0:00:44]} 18. cxd5 {[%emt 0:04:31]} Bxd5 {[%emt 0:12:52]} 19. Nxd5 {[%emt 0:07:16]} Qxd5 {[%emt 0:07:00]} 20. Qxd5 {[%emt 0:10:31]} Nxd5 {[%emt 0:00:29]} 21. Bd2 {[%emt 0:01:14]} Nc3 {[%emt 0:04:45]} 22. Bxc3 {[%emt 0:00:29]} Bxc3 {[%emt 0:00:24]} 23. Bc4 {[%emt 0:01:17]} Bd4+ {[%emt 0:00:49]} 24. Kf1 {[%emt 0:00:52]} Rc7 {[%emt 0:01:25]} 25. Rd1 {[%emt 0:04:35]} Be5 {[%emt 0:01:28]} 26. g3 {[%emt 0:03:53]} a6 {[%emt 0:01:20]} 27. f4 {[%emt 0:02:49]} Bc3 {[%emt 0:03:17]} 28. Rbc1 {[%emt 0:02:36]} Bb4 {[%emt 0:01:46]} 29. Bd5 {[%emt 0:04:47]} Rfc8 {[%emt 0:05:28]} 30. Rxc7 {[%emt 0:02:13]} Rxc7 {[%emt 0:00:16]} 31. Be4 {[%emt 0:00:57]} Be7 {[%emt 0:04:57]} 32. Ke2 {[%emt 0:03:34]} Kg7 {[%emt 0:02:40]} 33. Rd2 {[%emt 0:00:41]} b5 {[%emt 0:09:07]} 34. Rc2 {[%emt 0:02:34]} Rxc2+ {[%emt 0:00:41]} 35. Bxc2 {[%emt 0:00:11]} Kf6 {[%emt 0:02:43]} 36. Be4 {[%emt 0:01:00]} Bc5 {[%emt 0:00:54]} 37. Kf3 {[%emt 0:01:08]} h6 {[%emt 0:03:26]} 1/2-1/2

[Event "DVM U16w 2024"]
[Site "Neumuenster"]
[Date "2024.12.29"]
[Round "5"]
[White "Dhanasekaran Meenambigai, Diya"]
[Black "Neitzke, Loreley"]
[Result "1-0"]
[ECO "A40"]
[WhiteElo "1568"]
[BlackElo "883"]
[Annotator "NA"]
[PlyCount "91"]
[EventDate "2024.12.23"]
[EventType "team-tourn"]
[EventRounds "7"]
[EventCountry "GER"]
[SourceTitle "playchess.com"]
[Source "ChessBase"]
[SourceQuality "1"]
[TimeControl "40/5400+30:1800+30"]

1. d4 {[%emt 0:00:03]} e6 {[%emt 0:00:09]} 2. Nc3 {[%emt 0:00:07]} c5 {[%emt 0:00:48]} 3. Bf4 {[%emt 0:01:05]} cxd4 {[%emt 0:00:27]} 4. Qxd4 {[%emt 0:00:15]} Nc6 {[%emt 0:00:06]} 5. Qd1 {[%emt 0:00:30]} d5 {[%emt 0:00:18]} 6. e3 {[%emt 0:00:42]} Bc5 {[%emt 0:00:14]} 7. Nf3 {[%emt 0:00:22]} Nge7 {[%emt 0:00:19]} 8. a3 {[%emt 0:01:05]} f6 {[%emt 0:00:38]} 9. Be2 {[%emt 0:01:39]} e5 {[%emt 0:00:54]} 10. Bg3 {[%emt 0:00:56]} Nf5 {[%emt 0:00:09]} 11. Qxd5 {[%emt 0:01:14]} Nxg3 {[%emt 0:01:39]} 12. Qxd8+ {[%emt 0:00:19]} Nxd8 {[%emt 0:01:02]} 13. hxg3 {[%emt 0:01:46]} Bf5 {[%emt 0:00:42]} 14. Bb5+ {[%emt 0:01:13]} Nc6 {[%emt 0:00:41]} 15. Nd5 {[%emt 0:01:38]} O-O {[%emt 0:00:43]} 16. O-O-O {[%emt 0:01:23]} Be6 {[%emt 0:01:01]} 17. Nc7 {[%emt 0:00:28]} Rad8 {[%emt 0:00:40]} 18. Rxd8 {[%emt 0:00:25]} Nxd8 {[%emt 0:00:25]} 19. Nxe6 {[%emt 0:01:21]} Nxe6 {[%emt 0:00:28]} 20. Bc4 {[%emt 0:00:27]} Kf7 {[%emt 0:02:45]} 21. Bxe6+ {[%emt 0:01:15]} Kxe6 {[%emt 0:00:40]} 22. Rxh7 {[%emt 0:00:13]} Kf7 {[%emt 0:01:18]} 23. g4 {[%emt 0:01:40]} e4 {[%emt 0:01:32]} 24. Nd2 {[%emt 0:00:55]} Kg6 {[%emt 0:03:58]} 25. Rh1 {[%emt 0:00:47]} f5 {[%emt 0:00:21]} 26. gxf5+ {[%emt 0:00:46]} Rxf5 {[%emt 0:00:39]} 27. Nxe4 {[%emt 0:00:22]} b6 {[%emt 0:01:33]} 28. Nxc5 {[%emt 0:00:31]} bxc5 {[%emt 0:00:32]} 29. f3 {[%emt 0:00:12]} c4 {[%emt 0:00:37]} 30. Kd2 {[%emt 0:00:21]} Rd5+ {[%emt 0:01:35]} 31. Kc3 {[%emt 0:00:18]} Rc5 {[%emt 0:01:29]} 32. Rh4 {[%emt 0:00:09]} Rh5 {[%emt 0:01:39]} 33. Rxh5 {[%emt 0:00:51]} Kxh5 {[%emt 0:01:10]} 34. Kxc4 {[%emt 0:00:08]} g5 {[%emt 0:00:51]} 35. e4 {[%emt 0:00:09]} Kh4 {[%emt 0:00:30]} 36. e5 {[%emt 0:00:02]} Kg3 {[%emt 0:00:16]} 37. e6 {[%emt 0:00:05]} Kxg2 {[%emt 0:00:22]} 38. e7 {[%emt 0:00:03]} Kxf3 {[%emt 0:00:29]} 39. e8=Q {[%emt 0:00:05]} g4 {[%emt 0:00:24]} 40. Qe1 {[%emt 0:00:07]} g3 {[%emt 0:00:37]} 41. Qg1 {[%emt 0:30:08]} g2 {[%emt 0:30:32]} 42. Kd3 {[%emt 0:00:14]} Kg3 {[%emt 0:00:51]} 43. Ke3 {[%emt 0:00:07]} Kh3 {[%emt 0:00:45]} 44. Kf3 {[%emt 0:00:08]} Kh4 {[%emt 0:00:20]} 45. Qxg2 {[%emt 0:00:04]} a6 {[%emt 0:00:20]} 46. Qg4# {[%emt 0:00:09]} 1-0

[Event "DVM U16w 2024"]
[Site "Neumuenster"]
[Date "2024.12.29"]
[Round "5"]
[White "Mo, Keyou"]
[Black "Margaryan, Mane"]
[Result "0-1"]
[ECO "B33"]
[WhiteElo "1552"]
[BlackElo "1533"]
[Annotator "NA"]
[PlyCount "58"]
[EventDate "2024.12.23"]
[EventType "team-tourn"]
[EventRounds "7"]
[EventCountry "GER"]
[SourceTitle "playchess.com"]
[Source "ChessBase"]
[SourceQuality "1"]
[TimeControl "40/5400+30:1800+30"]

1. e4 {[%emt 0:00:01]} c5 {[%emt 0:00:04]} 2. Nf3 {[%emt 0:00:06]} e6 {[%emt 0:00:03]} 3. d4 {[%emt 0:00:12]} cxd4 {[%emt 0:00:06]} 4. Nxd4 {[%emt 0:00:05]} Nf6 {[%emt 0:00:06]} 5. f3 {[%emt 0:02:48]} Nc6 {[%emt 0:04:35]} 6. Nxc6 {[%emt 0:00:40]} bxc6 {[%emt 0:00:18]} 7. c4 {[%emt 0:00:56]} Bb7 {[%emt 0:08:27]} 8. Nc3 {[%emt 0:01:58]} d5 {[%emt 0:07:54]} 9. cxd5 {[%emt 0:00:16]} cxd5 {[%emt 0:00:16]} 10. exd5 {[%emt 0:02:23]} Nxd5 {[%emt 0:01:17]} 11. Qa4+ {[%emt 0:00:54]} Ke7 {[%emt 0:03:22]} 12. Qa3+ {[%emt 0:01:07]} Qd6 {[%emt 0:07:31]} 13. Qb3 {[%emt 0:08:10]} Bc6 {[%emt 0:07:16]} 14. Bd2 {[%emt 0:09:47]} Rb8 {[%emt 0:12:31]} 15. Nxd5+ {[%emt 0:06:04]} Bxd5 {[%emt 0:01:32]} 16. Qc2 {[%emt 0:03:03]} Qe5+ {[%emt 0:07:29]} 17. Be2 {[%emt 0:03:31]} Rxb2 {[%emt 0:08:45]} 18. Qc5+ {[%emt 0:03:21]} Kd8 {[%emt 0:08:01]} 19. Ba5+ {[%emt 0:04:09]} Kd7 {[%emt 0:03:15]} 20. Qxa7+ {[%emt 0:01:11]} Rb7 {[%emt 0:01:38]} 21. Qf2 {[%emt 0:01:29]} Qxa1+ {[%emt 0:00:34]} 22. Bd1 {[%emt 0:00:50]} Qe5+ {[%emt 0:02:22]} 23. Kf1 {[%emt 0:00:23]} Bc4+ {[%emt 0:00:54]} 24. Kg1 {[%emt 0:00:51]} Bc5 {[%emt 0:01:24]} 25. Ba4+ {[%emt 0:00:52]} Ke7 {[%emt 0:00:59]} 26. g4 {[%emt 0:04:11]} Bxf2+ {[%emt 0:01:06]} 27. Kxf2 {[%emt 0:00:08]} Rb2+ {[%emt 0:00:41]} 28. Kg1 {[%emt 0:00:18]} Qxa5 {[%emt 0:00:19]} 29. f4 {[%emt 0:00:24]} Qe1# {[%emt 0:00:07]} 0-1

[Event "DVM U16w 2024"]
[Site "Neumuenster"]
[Date "2024.12.29"]
[Round "5"]
[White "Brewig, Bea Josephine"]
[Black "Weng, Yueyi Elina"]
[Result "1-0"]
[ECO "B13"]
[WhiteElo "1545"]
[BlackElo "1718"]
[Annotator "NA RC"]
[PlyCount "57"]
[EventDate "2024.12.23"]
[EventType "team-tourn"]
[EventRounds "7"]
[EventCountry "GER"]
[SourceTitle "playchess.com"]
[Source "ChessBase"]
[SourceQuality "1"]
[TimeControl "40/5400+30:1800+30"]

1. e4 {[%emt 0:00:05]} c6 {[%emt 0:00:05]} 2. d4 {[%emt 0:00:06]} d5 {[%emt 0:00:06]} 3. exd5 {[%emt 0:00:06]} cxd5 {[%emt 0:00:08]} 4. c4 {[%emt 0:00:06]} Nf6 {[%emt 0:00:20]} 5. Nc3 {[%emt 0:00:12]} Nc6 {[%emt 0:00:12]} 6. Nf3 {[%emt 0:00:11]} Bg4 {[%emt 0:01:02]} 7. cxd5 {[%emt 0:00:49]} Nxd5 {[%emt 0:00:50]} 8. Qb3 {[%emt 0:00:58]} Bxf3 {[%emt 0:01:11]} 9. gxf3 {[%emt 0:00:11]} e6 {[%emt 0:00:30]} 10. Qxb7 {[%emt 0:00:40]} Nxd4 {[%emt 0:00:21]} 11. Bb5+ {[%emt 0:00:55]} Nxb5 {[%emt 0:00:13]} 12. Qc6+ {[%emt 0:00:41]} Ke7 {[%emt 0:00:16]} 13. Qc5+ {[%emt 0:01:49]} Nd6 {[%emt 0:02:43]} 14. Nxd5+ {[%emt 0:02:13]} exd5 {[%emt 0:04:13]} 15. O-O {[%emt 0:02:08]} Qb6 {[%emt 0:02:01]} 16. Qxd5 {[%emt 0:03:02]} Re8 {[%emt 0:00:56]} 17. Bg5+ {[%emt 0:26:46]} Kd7 {[%emt 0:14:38]} 18. Rfd1 {[%emt 0:10:22]} Be7 {[%emt 0:19:26]} 19. Be3 {[%emt 0:32:25]} Qc6 {[%emt 0:09:43]} 20. Qf5+ {[%emt 0:02:53]} Kd8 {[%emt 0:04:18]} 21. Rac1 {[%emt 0:01:05]} Qb7 {[%emt 0:06:56]} 22. Bxa7 {[%emt 0:01:02]} Ref8 {[%emt 0:05:53]} 23. Bb6+ {[%emt 0:07:37]} Ke8 {[%emt 0:03:13]} 24. Rxd6 {[%emt 0:03:25]} Bxd6 {[%emt 0:11:24]} 25. Re1+ {[%emt 0:00:33]} Be7 {[%emt 0:01:22]} 26. Bc5 {[%emt 0:00:21]} Kd8 {[%emt 0:05:18]} 27. Bxe7+ {[%emt 0:00:15]} Kc7 {[%emt 0:00:58]} 28. Bxf8 {[%emt 0:00:34]} Qb6 {[%emt 0:04:10]} 29. Qxf7+ {[%emt 0:00:21]} 1-0

[Event "DVM U16w 2024"]
[Site "Neumuenster"]
[Date "2024.12.29"]
[Round "5"]
[White "Schmidt, Emelie"]
[Black "Paliwal, Kashika"]
[Result "1/2-1/2"]
[ECO "D15"]
[WhiteElo "1545"]
[BlackElo "1812"]
[Annotator "NA"]
[PlyCount "58"]
[EventDate "2024.12.23"]
[EventType "team-tourn"]
[EventRounds "7"]
[EventCountry "GER"]
[SourceTitle "playchess.com"]
[Source "ChessBase"]
[SourceQuality "1"]
[TimeControl "40/5400+30:1800+30"]

1. d4 {[%emt 0:00:01]} d5 {[%emt 0:00:04]} 2. c4 {[%emt 0:00:09]} c6 {[%emt 0:00:06]} 3. Nf3 {[%emt 0:00:07]} Nf6 {[%emt 0:00:15]} 4. Nc3 {[%emt 0:00:17]} a6 {[%emt 0:00:25]} 5. a4 {[%emt 0:01:30]} Bf5 {[%emt 0:01:16]} 6. Bg5 {[%emt 0:01:02]} e6 {[%emt 0:05:55]} 7. e3 {[%emt 0:01:42]} h6 {[%emt 0:01:04]} 8. Bh4 {[%emt 0:00:30]} Nbd7 {[%emt 0:00:16]} 9. h3 {[%emt 0:02:12]} Bd6 {[%emt 0:02:01]} 10. Bxf6 {[%emt 0:05:38]} Qxf6 {[%emt 0:01:21]} 11. c5 {[%emt 0:02:45]} Bc7 {[%emt 0:00:11]} 12. Be2 {[%emt 0:00:57]} O-O {[%emt 0:01:18]} 13. O-O {[%emt 0:00:31]} Rfe8 {[%emt 0:02:13]} 14. Bd3 {[%emt 0:05:37]} Bxd3 {[%emt 0:01:51]} 15. Qxd3 {[%emt 0:07:01]} e5 {[%emt 0:02:40]} 16. Qc2 {[%emt 0:03:08]} e4 {[%emt 0:01:33]} 17. Nd2 {[%emt 0:01:32]} Qg5 {[%emt 0:03:09]} 18. Rfe1 {[%emt 0:03:41]} Re6 {[%emt 0:03:01]} 19. f3 {[%emt 0:03:12]} Rg6 {[%emt 0:01:40]} 20. Re2 {[%emt 0:01:08]} Qg3 {[%emt 0:01:41]} 21. f4 {[%emt 0:13:46]} Qxh3 {[%emt 0:03:31]} 22. Nf1 {[%emt 0:02:29]} Qh4 {[%emt 0:03:36]} 23. g3 {[%emt 0:01:31]} Qg4 {[%emt 0:15:22]} 24. b4 {[%emt 0:04:20]} Nf6 {[%emt 0:02:28]} 25. Rh2 {[%emt 0:00:57]} h5 {[%emt 0:00:58]} 26. Qg2 {[%emt 0:01:37]} Qf5 {[%emt 0:09:10]} 27. Qb2 {[%emt 0:03:13]} Ng4 {[%emt 0:02:04]} 28. Rg2 {[%emt 0:02:36]} h4 {[%emt 0:06:06]} 29. gxh4 {[%emt 0:03:33]} Qh5 {[%emt 0:01:05]} 1/2-1/2

[Event "DVM U16w 2024"]
[Site "Neumuenster"]
[Date "2024.12.29"]
[Round "5"]
[White "Gruber, Florentine"]
[Black "Ignatova, Gabriela"]
[Result "1-0"]
[ECO "A41"]
[WhiteElo "1539"]
[BlackElo "1595"]
[Annotator "NA"]
[PlyCount "21"]
[EventDate "2024.12.23"]
[EventType "team-tourn"]
[EventRounds "7"]
[EventCountry "GER"]
[SourceTitle "playchess.com"]
[Source "ChessBase"]
[SourceQuality "1"]
[TimeControl "40/5400+30:1800+30"]

1. d4 {[%emt 0:00:01]} d6 {[%emt 0:00:10]} 2. c4 {[%emt 0:00:41]} e5 {[%emt 0:00:15]} 3. Nf3 {[%emt 0:02:04]} Nd7 {[%emt 0:06:56]} 4. g3 {[%emt 0:06:07]} f5 {[%emt 0:02:44]} 5. Ng5 {[%emt 0:05:31]} Ngf6 {[%emt 0:09:47]} 6. Ne6 {[%emt 0:00:58]} Qe7 {[%emt 0:00:13]} 7. Nxc7+ {[%emt 0:00:29]} Kd8 {[%emt 0:00:06]} 8. Nxa8 {[%emt 0:00:13]} b6 {[%emt 0:00:40]} 9. Bg2 {[%emt 0:01:24]} e4 {[%emt 0:00:33]} 10. Qa4 {[%emt 0:07:47]} a5 {[%emt 0:01:25]} 11. Qc6 {[%emt 0:03:21]} 1-0

[Event "DVM U16w 2024"]
[Site "Neumuenster"]
[Date "2024.12.29"]
[Round "5"]
[White "Margaryan, Sofia"]
[Black "Mehner, Clara"]
[Result "1/2-1/2"]
[ECO "D35"]
[WhiteElo "1532"]
[BlackElo "1572"]
[Annotator "NA"]
[PlyCount "47"]
[EventDate "2024.12.23"]
[EventType "team-tourn"]
[EventRounds "7"]
[EventCountry "GER"]
[SourceTitle "playchess.com"]
[Source "ChessBase"]
[SourceQuality "1"]
[TimeControl "40/5400+30:1800+30"]

1. d4 {[%emt 0:00:02]} d5 {[%emt 0:00:07]} 2. c4 {[%emt 0:00:04]} c6 {[%emt 0:00:07]} 3. Nc3 {[%emt 0:00:07]} Nf6 {[%emt 0:00:08]} 4. Bf4 {[%emt 0:00:33]} e6 {[%emt 0:00:33]} 5. e3 {[%emt 0:00:28]} Nbd7 {[%emt 0:00:47]} 6. cxd5 {[%emt 0:00:21]} exd5 {[%emt 0:00:32]} 7. Bd3 {[%emt 0:00:24]} Be7 {[%emt 0:01:11]} 8. Nf3 {[%emt 0:00:27]} O-O {[%emt 0:01:29]} 9. h3 {[%emt 0:03:10]} b6 {[%emt 0:09:05]} 10. O-O {[%emt 0:03:54]} Re8 {[%emt 0:03:27]} 11. a3 {[%emt 0:05:00]} Nf8 {[%emt 0:04:57]} 12. b4 {[%emt 0:05:35]} Be6 {[%emt 0:04:48]} 13. Rc1 {[%emt 0:03:59]} Bc8 {[%emt 0:21:28]} 14. Qb3 {[%emt 0:19:43]} Bb7 {[%emt 0:05:36]} 15. Rc2 {[%emt 0:02:51]} Ng6 {[%emt 0:05:54]} 16. Bh2 {[%emt 0:03:25]} Bd6 {[%emt 0:01:59]} 17. Bxd6 {[%emt 0:03:34]} Qxd6 {[%emt 0:00:25]} 18. Rfc1 {[%emt 0:10:25]} Rac8 {[%emt 0:05:46]} 19. Na4 {[%emt 0:11:41]} Ne4 {[%emt 0:08:10]} 20. Bxe4 {[%emt 0:00:13]} dxe4 {[%emt 0:04:16]} 21. Nd2 {[%emt 0:00:27]} Nh4 {[%emt 0:01:25]} 22. Nf1 {[%emt 0:02:05]} Qd7 {[%emt 0:02:38]} 23. Nc3 {[%emt 0:02:04]} Re6 {[%emt 0:01:32]} 24. b5 {[%emt 0:01:51]} 1/2-1/2

[Event "DVM U16w 2024"]
[Site "Neumuenster"]
[Date "2024.12.29"]
[Round "5"]
[White "Tok, Tuana"]
[Black "Lippok, Hanna"]
[Result "1-0"]
[ECO "B00"]
[WhiteElo "1520"]
[BlackElo "744"]
[Annotator "NA"]
[PlyCount "113"]
[EventDate "2024.12.23"]
[EventType "team-tourn"]
[EventRounds "7"]
[EventCountry "GER"]
[SourceTitle "playchess.com"]
[Source "ChessBase"]
[SourceQuality "1"]
[TimeControl "40/5400+30:1800+30"]

1. e4 {[%emt 0:00:06]} b6 {[%emt 0:00:08]} 2. Nf3 {[%emt 0:00:09]} Bb7 {[%emt 0:00:16]} 3. Nc3 {[%emt 0:01:31]} Nf6 {[%emt 0:00:14]} 4. e5 {[%emt 0:01:48]} Ng4 {[%emt 0:03:27]} 5. h3 {[%emt 0:00:55]} Nh6 {[%emt 0:02:04]} 6. Bc4 {[%emt 0:00:35]} e6 {[%emt 0:00:40]} 7. O-O {[%emt 0:01:16]} Rg8 {[%emt 0:00:32]} 8. d4 {[%emt 0:00:27]} c5 {[%emt 0:00:44]} 9. Bxh6 {[%emt 0:00:25]} gxh6 {[%emt 0:00:24]} 10. dxc5 {[%emt 0:00:28]} Bxc5 {[%emt 0:00:26]} 11. Be2 {[%emt 0:01:40]} Bb4 {[%emt 0:00:46]} 12. Qd2 {[%emt 0:00:21]} Kf8 {[%emt 0:01:14]} 13. Qxh6+ {[%emt 0:00:11]} Ke8 {[%emt 0:00:23]} 14. Qxh7 {[%emt 0:00:05]} Kf8 {[%emt 0:03:52]} 15. Ne4 {[%emt 0:01:12]} Rg7 {[%emt 0:00:12]} 16. Qh8+ {[%emt 0:00:17]} Rg8 {[%emt 0:00:21]} 17. Qh7 {[%emt 0:00:11]} Rg7 {[%emt 0:00:23]} 18. Qh4 {[%emt 0:01:38]} Be7 {[%emt 0:00:48]} 19. Qf4 {[%emt 0:03:22]} Qe8 {[%emt 0:01:17]} 20. Nf6 {[%emt 0:00:38]} Bxf6 {[%emt 0:01:17]} 21. Qxf6 {[%emt 0:00:37]} Rh7 {[%emt 0:02:10]} 22. Ng5 {[%emt 0:00:51]} Rh4 {[%emt 0:02:09]} 23. Bd3 {[%emt 0:01:00]} d6 {[%emt 0:01:36]} 24. Nh7+ {[%emt 0:00:40]} Kg8 {[%emt 0:00:30]} 25. Qxh4 {[%emt 0:00:22]} Qc6 {[%emt 0:00:15]} 26. Nf6+ {[%emt 0:00:26]} Kf8 {[%emt 0:00:19]} 27. Qh8+ {[%emt 0:00:33]} Ke7 {[%emt 0:00:10]} 28. exd6+ {[%emt 0:00:35]} Kxd6 {[%emt 0:00:14]} 29. Qd8+ {[%emt 0:00:51]} Ke5 {[%emt 0:00:22]} 30. Rfe1+ {[%emt 0:00:26]} Kf4 {[%emt 0:00:45]} 31. Qd4+ {[%emt 0:01:05]} Kg5 {[%emt 0:00:22]} 32. Qe5+ {[%emt 0:00:50]} Kh6 {[%emt 0:00:20]} 33. Qh5+ {[%emt 0:01:03]} Kg7 {[%emt 0:00:34]} 34. Qg5+ {[%emt 0:00:26]} Kf8 {[%emt 0:00:25]} 35. Nh7+ {[%emt 0:01:00]} Ke8 {[%emt 0:00:25]} 36. Rad1 {[%emt 0:01:58]} Nd7 {[%emt 0:00:35]} 37. Re3 {[%emt 0:05:20]} f6 {[%emt 0:00:34]} 38. Qg6+ {[%emt 0:00:24]} Kd8 {[%emt 0:00:47]} 39. Nxf6 {[%emt 0:01:07]} Nxf6 {[%emt 0:01:05]} 40. Qxf6+ {[%emt 0:00:04]} Kc8 {[%emt 0:00:26]} 41. Qxe6+ {[%emt 0:30:59]} Qxe6 {[%emt 0:33:32]} 42. Rxe6 {[%emt 0:00:00]} Bd5 {[%emt 0:00:12]} 43. Re8+ {[%emt 0:00:00]} Kb7 {[%emt 0:01:03]} 44. Rxa8 {[%emt 0:00:00]} Kxa8 {[%emt 0:00:15]} 45. Re1 {[%emt 0:00:00]} Bc6 {[%emt 0:00:21]} 46. Re6 {[%emt 0:00:00]} Ba4 {[%emt 0:00:54]} 47. Be4+ {[%emt 0:00:09]} Kb8 {[%emt 0:00:32]} 48. h4 {[%emt 0:00:15]} Bd7 {[%emt 0:00:46]} 49. Re7 {[%emt 0:00:14]} Kc7 {[%emt 0:02:36]} 50. h5 {[%emt 0:00:06]} a5 {[%emt 0:00:33]} 51. h6 {[%emt 0:00:11]} b5 {[%emt 0:00:23]} 52. h7 {[%emt 0:00:04]} a4 {[%emt 0:00:13]} 53. h8=Q {[%emt 0:00:06]} b4 {[%emt 0:00:32]} 54. Qh7 {[%emt 0:00:13]} a3 {[%emt 0:00:28]} 55. Rxd7+ {[%emt 0:00:15]} Kc8 {[%emt 0:00:25]} 56. Rf7 {[%emt 0:01:08]} axb2 {[%emt 0:00:23]} 57. Qh8# {[%emt 0:00:14]} 1-0

[Event "DVM U16w 2024"]
[Site "Neumuenster"]
[Date "2024.12.29"]
[Round "5"]
[White "Yan, Jenny"]
[Black "Grey, Paula"]
[Result "1-0"]
[ECO "A29"]
[WhiteElo "1501"]
[BlackElo "1221"]
[Annotator "NA"]
[PlyCount "78"]
[EventDate "2024.12.23"]
[EventType "team-tourn"]
[EventRounds "7"]
[EventCountry "GER"]
[SourceTitle "playchess.com"]
[Source "ChessBase"]
[SourceQuality "1"]
[TimeControl "40/5400+30:1800+30"]

1. c4 {[%emt 0:00:01]} e5 {[%emt 0:00:07]} 2. g3 {[%emt 0:00:06]} Nc6 {[%emt 0:01:44]} 3. Bg2 {[%emt 0:00:19]} Bc5 {[%emt 0:03:21]} 4. d3 {[%emt 0:01:11]} Nf6 {[%emt 0:03:04]} 5. Nf3 {[%emt 0:01:29]} d6 {[%emt 0:02:14]} 6. Nc3 {[%emt 0:00:40]} h6 {[%emt 0:03:45]} 7. O-O {[%emt 0:01:21]} O-O {[%emt 0:01:43]} 8. Bd2 {[%emt 0:03:25]} Be6 {[%emt 0:03:39]} 9. Na4 {[%emt 0:03:53]} Bb6 {[%emt 0:01:23]} 10. Nxb6 {[%emt 0:00:26]} axb6 {[%emt 0:00:17]} 11. a3 {[%emt 0:02:53]} e4 {[%emt 0:07:21]} 12. dxe4 {[%emt 0:01:22]} Bxc4 {[%emt 0:04:52]} 13. Rc1 {[%emt 0:02:14]} Bb5 {[%emt 0:02:52]} 14. Re1 {[%emt 0:05:48]} Nxe4 {[%emt 0:03:32]} 15. Nd4 {[%emt 0:05:03]} d5 {[%emt 0:03:27]} 16. Nxb5 {[%emt 0:00:20]} Re8 {[%emt 0:13:31]} 17. Nc3 {[%emt 0:02:29]} Na5 {[%emt 0:06:45]} 18. Nxe4 {[%emt 0:02:43]} dxe4 {[%emt 0:00:19]} 19. Bxa5 {[%emt 0:01:37]} bxa5 {[%emt 0:01:12]} 20. Qxd8 {[%emt 0:03:16]} Raxd8 {[%emt 0:01:30]} 21. Rxc7 {[%emt 0:00:47]} b5 {[%emt 0:05:20]} 22. Rec1 {[%emt 0:03:08]} Kh7 {[%emt 0:02:53]} 23. Rxf7 {[%emt 0:01:46]} e3 {[%emt 0:03:53]} 24. fxe3 {[%emt 0:02:29]} Rc8 {[%emt 0:05:12]} 25. Rxc8 {[%emt 0:02:12]} Rxc8 {[%emt 0:00:08]} 26. Rf5 {[%emt 0:01:44]} Rb8 {[%emt 0:04:56]} 27. b4 {[%emt 0:03:55]} axb4 {[%emt 0:01:58]} 28. axb4 {[%emt 0:00:13]} Rb6 {[%emt 0:03:46]} 29. Be4 {[%emt 0:01:27]} Kg8 {[%emt 0:00:58]} 30. Bd3 {[%emt 0:00:44]} Re6 {[%emt 0:00:33]} 31. Rxb5 {[%emt 0:00:59]} Rxe3 {[%emt 0:01:09]} 32. Kf2 {[%emt 0:01:32]} Re8 {[%emt 0:03:58]} 33. Rc5 {[%emt 0:00:49]} Rb8 {[%emt 0:01:08]} 34. b5 {[%emt 0:00:16]} Kf8 {[%emt 0:01:17]} 35. Rc2 {[%emt 0:00:42]} Ke7 {[%emt 0:01:19]} 36. Rb2 {[%emt 0:00:22]} Kd6 {[%emt 0:01:45]} 37. b6 {[%emt 0:00:21]} g5 {[%emt 0:00:48]} 38. b7 {[%emt 0:00:18]} Kc7 {[%emt 0:01:09]} 39. Be4 {[%emt 0:00:10]} Kd6 {[%emt 0:00:00]} 1-0